bitfinex/quotes_ETHUSD_20240702
["timestamp","ask_amount","ask_price","bid_price","bid_amount"]
[1719881724692,5.37536,3447.6,3446.9,3.72714]
[1719881728322,5.37536,3447.6,3447.2,0.826]
[1719881730831,2.4748,3447.6,3447.2,0.826]
[1719881732321,0.17230394,3447.5,3447.2,0.826]
[1719881734494,2.90045,3447.8,3447.2,0.826]
[1719881734694,0.17230394,3447.4,3447.2,0.826]
[1719881734915,2.90045,3447.8,3447.2,0.826]
[1719881735126,0.17230394,3447.3,3447.2,0.826]
[1719881735294,2.90045,3447.8,3447.2,0.826]
[1719881735490,0.17230394,3447.3,3447.2,0.826]
[1719881735730,2.90045,3447.8,3447.2,0.826]
[1719881735930,0.17230394,3447.3,3447.2,0.826]
[1719881736238,2.90045,3447.8,3447.2,0.826]
[1719881736411,0.17230394,3447.3,3447.2,2.95891719]
[1719881736616,4.407939,3447.9,3447.4,2.90073]
[1719881736805,0.35948148,3447.8,3447.5,0.826]
[1719881738011,0.35948148,3447.7,3447.5,0.826]
[1719881738207,5.30565,3448.1,3447.5,0.826]
[1719881738416,0.35947426,3448.0,3447.5,0.826]
[1719881739648,0.35947426,3448.0,3447.4,2.90073]
[1719881740000,3.25970426,3448.0,3447.4,2.90073]
[1719881740256,0.35947426,3447.9,3447.4,2.90073]
[1719881745430,2.90023,3448.0,3447.4,2.90073]
[1719881745431,0.35947426,3447.8,3447.4,2.90073]
[1719881745598,0.35947426,3447.7,3447.4,2.90073]
[1719881745798,2.90023,3448.0,3447.4,2.90073]
[1719881745799,0.35947426,3447.6,3447.4,2.90073]
[1719881746130,0.35947426,3447.5,3447.4,2.90073]
[1719881746430,0.35947426,3447.7,3447.4,2.90073]
[1719881747128,0.17235667,3447.6,3447.4,2.90073]
[1719881747334,0.35947426,3447.5,3447.4,2.90073]
[1719881747696,0.53183093,3447.5,3447.3,3.72681]
[1719881747900,0.35947426,3447.4,3447.3,3.72681]
[1719881748303,0.17235667,3447.4,3447.3,3.72681]
[1719881748629,0.35947426,3447.4,3447.3,3.72681]
[1719881748827,0.53183093,3447.4,3447.3,3.72681]
[1719881750334,0.53183093,3447.4,3447.2,2.9009]
[1719881750546,0.35947426,3447.3,3447.2,3.7269]
[1719881751056,0.53183093,3447.3,3447.2,3.7269]
[1719881752403,0.53183093,3447.3,3447.2,6.962345]
[1719881756316,0.53183093,3447.3,3447.2,6.0603]
[1719881757843,0.35947426,3447.3,3447.2,6.0603]
[1719881758134,2.13416984,3447.5,3447.3,2.90082]
[1719881758304,0.35962951,3447.4,3447.3,2.90082]
[1719881759748,2.99593018,3447.4,3447.2,3.72687]
[1719881759909,0.35962951,3447.3,3447.2,3.72687]
[1719881761544,0.35962951,3447.3,3447.2,2.90087]
[1719881761743,0.35962951,3447.3,3447.2,3.72687]
[1719881762108,0.53216556,3447.3,3447.2,3.72687]
[1719881762722,0.53216556,3447.3,3447.2,0.826]
[1719881762919,3.16850337,3447.3,3446.9,2.3025]
[1719881763124,0.35964449,3447.2,3446.8,2.90121]
[1719881763328,0.35964449,3447.1,3446.8,2.90121]
[1719881763632,0.35964449,3447.0,3446.9,0.826]
[1719881763953,0.53216866,3447.0,3446.9,0.826]
[1719881764127,0.53216866,3447.0,3446.8,3.72721]
[1719881764328,0.35964449,3446.9,3446.8,3.72721]
[1719881764529,0.35964449,3446.9,3446.8,5.230694]
[1719881764730,0.53209109,3446.9,3446.8,5.230694]
[1719881766286,0.53209109,3446.9,3446.8,10.562134]
[1719881766429,0.53209109,3446.9,3446.8,8.131934]
[1719881766628,0.35964449,3446.9,3446.8,8.131934]
[1719881766831,0.35968615,3447.2,3446.9,2.90108]
[1719881767180,2.13386938,3447.3,3447.1,0.826]
[1719881767460,0.35968743,3447.2,3447.1,0.826]
[1719881767837,0.35968743,3447.2,3446.7,2.9013]
[1719881767838,2.49355681,3447.2,3446.7,2.9013]
[1719881768043,0.35968743,3447.1,3446.9,0.826]
[1719881768363,0.35968743,3447.0,3446.9,0.826]
[1719881769630,0.35968743,3447.1,3446.9,0.826]
[1719881769847,0.35968743,3447.0,3446.9,0.826]
[1719881770159,0.35968743,3447.1,3446.9,0.826]
[1719881770363,0.35968743,3447.0,3446.9,0.826]
[1719881770659,0.35968743,3447.1,3446.9,0.826]
[1719881772749,0.35968743,3447.0,3446.9,0.826]
[1719881772978,0.35968743,3447.1,3446.9,0.826]
[1719881773176,0.35968743,3447.0,3446.9,3.72715]
[1719881773480,0.35968743,3447.1,3446.9,3.72715]
[1719881773657,0.35968743,3447.0,3446.9,2.90115]
[1719881773843,0.35968743,3447.0,3446.9,6.07135]
[1719881774245,2.13341907,3447.3,3446.9,6.07135]
[1719881774246,0.35968743,3447.2,3446.9,6.07135]
[1719881774480,0.35968743,3447.1,3446.9,6.442609]
[1719881774671,2.13341907,3447.3,3447.0,3.72706]
[1719881774869,0.35964365,3447.2,3447.0,2.90106]
[1719881775070,0.35964365,3447.2,3447.1,0.826]
[1719881775468,0.35964365,3447.2,3447.0,2.90106]
[1719881775672,0.35964365,3447.2,3447.1,0.826]
[1719881777078,0.53206545,3447.2,3447.1,0.826]
[1719881782086,0.53206545,3447.2,3447.1,7.52521]
[1719881782285,0.53206545,3447.2,3447.1,9.94271]
[1719881782598,0.35964365,3447.2,3447.1,9.94271]
[1719881782757,2.13305319,3447.6,3447.4,2.90073]
[1719881782952,0.35955964,3447.5,3447.4,2.90073]
[1719881783159,0.35955964,3447.5,3447.4,3.72673]
[1719881784772,0.35955964,3447.6,3447.5,2.90065]
[1719881784985,0.35956255,3447.6,3447.5,2.90065]
[1719881786190,0.35956255,3447.6,3447.3,0.826]
[1719881786385,0.35956255,3447.5,3447.3,0.826]
[1719881787389,0.35956255,3447.5,3447.4,2.90072]
[1719881789370,0.35956255,3447.5,3447.4,8.79148242]
[1719881790791,0.35956255,3447.5,3447.4,12.61748242]
[1719881791161,0.35970748,3447.8,3447.6,2.90053]
[1719881791357,0.35970748,3447.8,3447.7,3.72648]
[1719881791560,2.13222046,3448.0,3447.8,2.90035]
[1719881791770,0.53218017,3447.9,3447.8,2.90035]
[1719881791989,2.66440063,3447.9,3447.8,2.90035]
[1719881792362,0.53218017,3447.9,3447.8,2.90035]
[1719881793071,1.03424609,3447.9,3447.8,2.90035]
[1719881793268,2.66430118,3447.9,3447.8,2.90035]
[1719881793473,3.16638296,3447.9,3447.8,2.90035]
[1719881793684,2.66430118,3447.9,3447.8,2.90035]
[1719881794067,3.16637751,3447.9,3447.8,2.90035]
[1719881794266,2.66430118,3447.9,3447.8,2.90035]
[1719881794492,0.53218017,3447.9,3447.8,2.90035]
[1719881794696,3.16614432,3447.9,3447.8,2.90035]
[1719881794899,2.66406111,3447.9,3447.8,2.90035]
[1719881795583,0.53218017,3447.9,3447.8,2.90035]
[1719881802689,0.53218017,3447.9,3447.7,0.826]
[1719881802874,0.53218017,3447.9,3447.6,2.90053]
[1719881802875,0.35973665,3447.8,3447.6,2.90053]
[1719881803291,0.17270093,3447.7,3447.6,2.90053]
[1719881803607,0.35973665,3447.7,3447.6,2.90053]
[1719881803783,0.17269783,3447.7,3447.6,2.90053]
[1719881803975,0.35973665,3447.7,3447.6,2.90053]
[1719881804176,0.17269783,3447.7,3447.6,2.90053]
[1719881804378,0.35973665,3447.7,3447.6,2.90053]
[1719881804693,0.17269783,3447.7,3447.6,2.90053]
[1719881804898,0.53243448,3447.7,3447.6,2.90053]
[1719881805098,0.35973665,3447.7,3447.6,2.90053]
[1719881805294,0.17269783,3447.7,3447.6,2.90053]
[1719881805494,0.53243448,3447.7,3447.6,2.90053]
[1719881805712,0.35973665,3447.7,3447.6,2.90053]
[1719881805884,0.53240968,3447.7,3447.6,2.90053]
[1719881807311,0.53240968,3447.7,3447.6,3.91257624]
[1719881809020,0.35973665,3447.7,3447.6,3.91257624]
[1719881809214,2.13067032,3448.1,3447.7,2.90047]
[1719881809391,1.03453114,3448.0,3447.8,0.826]
[1719881809591,0.35979097,3447.9,3447.8,0.826]
[1719881809913,0.5324547,3447.9,3447.8,0.826]
[1719881810083,0.5324547,3447.9,3447.8,10.05459462]
[1719881811002,0.52098747,3447.9,3447.8,10.05459462]
[1719881811205,0.52098747,3447.9,3447.8,12.95499462]
[1719881811418,0.35979097,3447.9,3447.8,12.95499462]
[1719881811613,0.36008731,3448.3,3447.8,6.89139462]
[1719881811791,2.3813,3448.1,3447.4,5.90071]
[1719881811991,2.3813,3448.1,3447.6,3.72656]
[1719881811992,0.8621383,3448.0,3447.6,3.72656]
[1719881812200,0.8621383,3447.9,3447.7,2.90047]
[1719881812510,4.5114875,3448.1,3447.7,2.90047]
[1719881812511,0.36008731,3447.8,3447.7,2.90047]
[1719881812716,0.16124637,3447.8,3447.7,3.72647]
[1719881812916,0.52133368,3447.8,3447.7,3.72647]
[1719881813117,0.36008731,3447.8,3447.7,3.72647]
[1719881813416,0.52132744,3447.8,3447.7,3.72647]
[1719881813806,0.52132744,3447.8,3447.7,2.90047]
[1719881814125,0.52132744,3447.8,3447.7,3.72647]
[1719881816219,0.52132744,3447.8,3447.7,0.826]
[1719881816918,1.02341225,3447.8,3447.7,9.98375892]
[1719881817243,0.52132744,3447.8,3447.7,5.90048]
[1719881817390,0.52132744,3447.8,3447.7,6.72648]
[1719881817724,0.52132744,3447.8,3447.5,3.72664]
[1719881817889,0.36008731,3447.7,3447.5,3.72664]
[1719881818322,0.16120273,3447.6,3447.5,3.72664]
[1719881818621,0.36008731,3447.6,3447.5,3.863383]
[1719881818921,0.36008731,3447.6,3447.5,4.689383]
[1719881819088,0.16122144,3447.6,3447.5,4.689383]
[1719881819517,0.36008731,3447.7,3447.5,4.689383]
[1719881819719,0.52128692,3447.6,3447.5,3.863383]
[1719881819923,0.52128692,3447.6,3447.5,4.689383]
[1719881820093,0.36008731,3447.6,3447.5,4.689383]
[1719881820295,2.49086196,3448.0,3447.6,2.90055]
[1719881820495,0.8618611,3447.9,3447.8,0.826]
[1719881820802,1.02303888,3447.9,3447.8,0.826]
[1719881822294,1.02304099,3447.9,3447.8,0.826]
[1719881823833,1.02305067,3447.9,3447.8,0.826]
[1719881825232,3.15461628,3447.9,3447.8,0.826]
[1719881825427,1.02305224,3447.9,3447.8,0.826]
[1719881825615,3.15540156,3447.9,3447.8,0.826]
[1719881826918,0.52097937,3447.9,3447.8,0.826]
[1719881829509,0.52097937,3447.9,3447.8,7.59400425]
[1719881829711,0.52097937,3447.9,3447.8,7.535997]
[1719881830310,0.16117778,3447.9,3447.8,7.535997]
[1719881830833,2.13289715,3448.2,3448.1,2.90014]
[1719881831031,2.63490083,3448.2,3448.1,3.72614]
[1719881831219,0.16122145,3448.2,3448.1,3.72614]
[1719881831397,2.2941186,3448.2,3448.1,3.72614]
[1719881831599,9.7654,3448.7,3448.4,2.89983]
[1719881831800,0.50199627,3448.6,3448.4,3.72583]
[1719881832104,2.2854,3448.7,3448.4,2.89983]
[1719881832105,0.50198924,3448.5,3448.4,2.89983]
[1719881832320,2.6341469,3448.5,3448.4,3.72583]
[1719881832621,2.13215766,3448.6,3448.4,3.72583]
[1719881832799,2.13215766,3448.5,3448.4,3.72583]
[1719881833219,2.13215766,3448.5,3448.4,2.89983]
[1719881833421,2.13215766,3448.6,3448.4,3.72583]
[1719881834335,2.51899655,3449.0,3448.4,3.72583]
[1719881834336,2.13215766,3448.7,3448.4,3.72583]
[1719881834741,2.9569149,3449.1,3448.4,3.72583]
[1719881834904,2.13140897,3448.6,3448.4,3.72583]
[1719881835331,2.13140897,3448.7,3448.4,3.72583]
[1719881836520,2.2524,3448.6,3448.4,3.72583]
[1719881836821,4.38380897,3448.6,3448.4,3.72583]
[1719881837046,0.16131495,3448.5,3448.4,3.72583]
[1719881838352,0.16131495,3448.5,3448.4,4.388416]
[1719881838647,2.13069019,3448.7,3448.4,3.562416]
[1719881838867,0.16131495,3448.6,3448.4,3.72583]
[1719881840252,2.29200514,3448.6,3448.3,0.826]
[1719881840453,2.29200514,3448.6,3448.3,3.72597]
[1719881841171,2.29200514,3448.6,3448.2,2.90005]
[1719881841172,2.65771495,3448.6,3448.2,2.90005]
[1719881841376,2.65771495,3448.6,3448.2,3.72605]
[1719881841377,4.78791812,3448.6,3448.2,3.72605]
[1719881844345,2.65771495,3448.6,3448.2,3.72605]
[1719881844645,4.78761297,3448.6,3448.2,3.72605]
[1719881844846,4.78762219,3448.6,3448.2,3.72605]
[1719881845700,2.65771495,3448.6,3448.2,3.72605]
[1719881845845,2.65771495,3448.6,3448.2,4.03902776]
[1719881846154,0.16131495,3448.6,3448.2,4.03902776]
[1719881848876,0.16131495,3448.6,3448.4,0.826]
[1719881850179,0.16131495,3448.6,3448.4,3.72588]
[1719881850677,2.1296985,3448.8,3448.4,0.826]
[1719881850678,0.16135858,3448.5,3448.4,0.826]
[1719881850885,2.12962091,3448.9,3448.6,2.89972]
[1719881851173,0.16136795,3448.8,3448.7,0.826]
[1719881851582,2.12962091,3449.0,3448.7,0.826]
[1719881851876,0.50193349,3448.9,3448.7,0.826]
[1719881852073,0.16136795,3448.8,3448.7,0.826]
[1719881852279,2.12962091,3449.0,3448.7,0.826]
[1719881852481,0.16136795,3448.9,3448.7,0.826]
[1719881853055,0.16136795,3448.9,3448.5,0.826]
[1719881853678,0.16136795,3448.9,3448.5,3.72578]
[1719881854748,2.2906631,3448.9,3448.5,3.72578]
[1719881855078,0.16136795,3448.9,3448.5,3.72578]
[1719881856515,0.16136795,3448.9,3448.5,4.41965878]
[1719881857556,0.50193635,3448.8,3448.5,4.41965878]
[1719881857787,0.1615955,3448.8,3448.5,4.41965878]
[1719881858184,2.12894086,3449.0,3448.5,4.41965878]
[1719881858495,0.50193279,3448.9,3448.5,4.41965878]
[1719881858653,0.66352829,3448.8,3448.5,4.41965878]
[1719881858982,0.1615955,3448.8,3448.5,4.41965878]
[1719881859351,2.12894086,3449.0,3448.5,4.41965878]
[1719881859556,0.1615955,3448.7,3448.5,3.72578]
[1719881859789,2.12894086,3449.0,3448.5,3.72578]
[1719881859991,0.1615955,3448.6,3448.5,3.72578]
[1719881860287,0.1615955,3448.6,3448.2,0.31297776]
[1719881860288,0.1615955,3448.6,3447.4,10.19065]
[1719881860509,0.50197181,3448.6,3448.3,0.826]
[1719881860717,0.1615955,3448.5,3448.3,0.826]
[1719881861063,7.38740329,3448.8,3448.3,0.826]
[1719881861372,0.66356616,3448.7,3448.3,0.826]
[1719881861559,0.50197066,3448.6,3448.3,0.826]
[1719881862063,0.1615955,3448.5,3448.3,0.826]
[1719881862384,7.38740329,3448.8,3448.3,0.826]
[1719881862597,0.1615955,3448.4,3448.3,0.826]
[1719881862794,7.38740329,3448.8,3448.3,0.826]
[1719881863095,0.50197186,3448.7,3448.3,0.826]
[1719881863280,0.66356736,3448.6,3448.3,0.826]
[1719881863451,0.50197186,3448.5,3448.3,0.826]
[1719881863650,0.1615799,3448.4,3448.3,0.826]
[1719881863851,7.38791041,3448.8,3448.3,0.826]
[1719881864175,0.66355015,3448.7,3448.3,0.826]
[1719881864376,0.50197025,3448.6,3448.3,0.826]
[1719881864568,2.29103031,3448.7,3448.3,0.826]
[1719881864768,0.50197223,3448.6,3448.3,0.826]
[1719881864967,0.1615799,3448.6,3448.3,0.826]
[1719881865579,0.50197371,3448.5,3448.3,0.826]
[1719881865784,0.1615799,3448.6,3448.3,0.826]
[1719881866086,0.66355358,3448.5,3448.3,0.826]
[1719881866253,0.1615799,3448.5,3448.3,0.826]
[1719881866459,2.13000129,3448.7,3448.3,0.826]
[1719881866760,0.66355367,3448.6,3448.3,0.826]
[1719881866961,0.50197377,3448.5,3448.3,0.826]
[1719881867161,0.1615799,3448.6,3448.3,0.826]
[1719881867458,0.50197369,3448.5,3448.3,0.826]
[1719881867664,2.13000129,3448.7,3448.3,0.826]
[1719881867665,0.1615799,3448.4,3448.3,0.826]
[1719881867873,2.13000129,3448.7,3448.3,0.826]
[1719881868074,0.66355039,3448.6,3448.3,0.826]
[1719881868395,0.50197884,3448.5,3448.3,0.826]
[1719881868564,0.1615799,3448.6,3448.3,0.826]
[1719881868765,0.50197281,3448.5,3448.3,0.826]
[1719881868986,0.1615799,3448.5,3448.3,0.826]
[1719881869387,5.25846,3448.8,3448.3,0.826]
[1719881869591,0.1615799,3448.4,3448.3,0.826]
[1719881869781,2.13073115,3448.6,3448.3,0.826]
[1719881869992,0.1615799,3448.4,3448.3,0.826]
[1719881870161,0.50199501,3448.4,3447.9,2.2558]
[1719881870360,0.66357491,3448.4,3448.0,3.826]
[1719881870594,0.50200655,3448.3,3448.1,0.826]
[1719881870777,2.29237218,3448.4,3448.1,0.826]
[1719881871097,0.50200928,3448.3,3448.1,0.826]
[1719881871296,0.1615799,3448.2,3448.1,0.826]
[1719881871595,2.13079228,3448.4,3448.1,0.826]
[1719881871895,0.50200889,3448.3,3448.0,3.826]
[1719881872195,2.3137,3448.3,3447.7,5.90043]
[1719881872399,4.44449228,3448.3,3447.9,0.826]
[1719881872592,0.5020321,3448.2,3447.8,0.826]
[1719881872775,0.50204201,3448.1,3447.8,0.826]
[1719881872974,2.13182968,3448.2,3447.8,0.826]
[1719881873169,2.63387591,3448.1,3447.8,0.826]
[1719881873399,2.63387591,3448.1,3447.6,8.21194]
[1719881873400,2.13182968,3448.1,3447.6,3.0]
[1719881873604,2.13182968,3448.1,3447.6,3.826]
[1719881873911,5.03198968,3448.1,3447.4,2.90068]
[1719881874203,2.63388724,3448.0,3447.6,0.826]
[1719881874392,5.03198968,3448.1,3447.6,0.826]
[1719881875665,5.03219102,3448.1,3447.6,0.826]
[1719881876901,2.13203102,3448.0,3447.3,2.4734]
[1719881877199,2.13203102,3447.9,3447.5,0.826]
[1719881877914,2.13203102,3447.9,3447.3,2.4734]
[1719881878087,2.13203102,3447.9,3447.5,0.826]
[1719881881321,5.03097478,3448.0,3447.5,0.826]
[1719881881781,5.03095483,3448.0,3447.5,0.826]
[1719881882116,0.16132431,3447.9,3447.5,0.826]
[1719881884481,0.16132431,3447.9,3447.3,2.4734]
[1719881884482,0.97055822,3447.9,3447.3,2.4734]
[1719881884686,2.90048,3447.7,3447.3,0.826]
[1719881884881,2.90048,3447.7,3447.0,5.2776]
[1719881885087,2.90048,3447.7,3447.3,0.826]
[1719881885088,0.16119961,3447.6,3447.3,0.826]
[1719881885915,0.16119961,3447.6,3447.5,0.826]
[1719881890744,2.90037,3447.9,3447.5,0.826]
[1719881891034,0.16116841,3447.6,3447.5,0.826]
[1719881891210,2.90037,3447.9,3447.5,0.826]
[1719881891393,0.16116841,3447.6,3447.5,0.826]
[1719881891908,2.90037,3447.9,3447.5,0.826]
[1719881892221,0.16116841,3447.8,3447.5,0.826]
[1719881892823,0.16116841,3447.8,3447.5,0.607389]
[1719881893025,0.16116841,3447.8,3447.7,3.2225]
[1719881893204,2.90008,3448.2,3447.7,3.2225]
[1719881893400,0.16109359,3447.8,3447.7,2.3965]
[1719881893595,0.16109359,3447.8,3447.7,3.2225]
[1719881893797,0.16109359,3447.8,3447.7,3.8955519]
[1719881894024,2.90008,3448.2,3447.7,3.8955519]
[1719881894233,2.90008,3448.2,3447.7,2.3965]
[1719881894234,0.16109983,3447.8,3447.7,2.3965]
[1719881894459,2.90008,3448.2,3447.7,3.2225]
[1719881894730,2.90008,3448.2,3448.0,0.826]
[1719881894931,0.1611123,3448.1,3448.0,0.826]
[1719881896030,0.1611123,3448.1,3447.8,0.826]
[1719881896464,3.0612623,3448.1,3447.8,0.826]
[1719881897297,3.0612623,3448.1,3447.5,5.15993]
[1719881897298,0.50207143,3448.0,3447.6,0.826]
[1719881897497,2.90015,3448.1,3447.6,0.826]
[1719881897730,0.66318806,3448.0,3447.6,0.826]
[1719881897900,0.1611123,3448.0,3447.6,0.826]
[1719881898837,0.5020796,3447.9,3447.6,0.826]
[1719881899126,0.66321161,3447.8,3447.6,0.826]
[1719881899325,0.16112166,3447.8,3447.6,0.826]
[1719881899528,5.02790004,3448.0,3447.6,0.826]
[1719881899721,0.66322175,3447.9,3447.6,0.826]
[1719881899921,0.50210009,3447.8,3447.6,0.826]
[1719881900234,0.50210362,3447.7,3447.6,0.826]
[1719881900439,0.66322528,3447.7,3447.6,0.826]
[1719881900735,0.66322528,3447.7,3447.4,0.826]
[1719881901257,0.16112166,3447.7,3447.4,0.826]
[1719881901608,2.9004,3447.8,3447.4,0.826]
[1719881901821,0.16112166,3447.6,3447.4,0.826]
[1719881902145,2.9004,3447.8,3447.4,0.826]
[1719881902301,0.16111856,3447.7,3447.6,0.826]
[1719881902498,0.50210196,3447.7,3447.6,0.826]
[1719881902702,0.66322052,3447.7,3447.6,0.826]
[1719881903119,0.16111856,3447.7,3447.6,0.826]
[1719881903339,0.50210375,3447.7,3447.6,0.826]
[1719881903639,0.66321917,3447.7,3447.6,0.826]
[1719881903823,0.16111542,3447.7,3447.6,0.826]
[1719881904216,0.50209814,3447.7,3447.6,0.826]
[1719881904529,0.66321356,3447.7,3447.6,0.826]
[1719881904911,0.16111542,3447.7,3447.6,0.826]
[1719881905241,8.11132,3448.0,3447.6,0.826]
[1719881905410,0.16111542,3447.7,3447.6,0.826]
[1719881905605,2.90031,3447.9,3447.6,0.826]
[1719881905808,0.16107113,3447.7,3447.6,0.826]
[1719881906038,0.50209427,3447.7,3447.6,0.826]
[1719881906243,0.16107113,3447.7,3447.6,0.826]
[1719881906535,0.50210059,3447.7,3447.6,0.826]
[1719881906736,0.16107113,3447.7,3447.6,0.826]
[1719881906940,0.50210059,3447.7,3447.6,0.826]
[1719881907138,0.16107113,3447.7,3447.6,0.826]
[1719881907310,0.50210059,3447.7,3447.6,0.826]
[1719881907509,0.66317172,3447.7,3447.6,0.826]
[1719881909439,0.16107113,3447.7,3447.6,0.826]
[1719881909642,0.66316876,3447.7,3447.6,0.826]
[1719881909839,0.50209763,3447.7,3447.6,0.826]
[1719881910044,0.66314939,3447.7,3447.6,0.826]
[1719881912045,0.66314939,3447.7,3447.4,3.1561]
[1719881912248,0.16105176,3447.7,3447.4,3.1561]
[1719881912635,2.90031,3447.9,3447.4,3.1561]
[1719881912813,0.16105176,3447.6,3447.4,3.1561]
[1719881913013,5.03111061,3447.9,3447.4,3.7618]
[1719881913316,5.03111061,3447.9,3447.4,3.1561]
[1719881913317,0.50209995,3447.8,3447.4,3.1561]
[1719881913615,0.66315171,3447.7,3447.4,3.1561]
[1719881913816,0.16105176,3447.7,3447.4,3.1561]
[1719881914148,5.03111061,3447.9,3447.4,3.1561]
[1719881914349,0.66309902,3447.8,3447.4,3.1561]
[1719881914556,0.16100746,3447.8,3447.4,3.1561]
[1719881914848,0.50209244,3447.7,3447.4,3.1561]
[1719881915026,2.29180807,3447.8,3447.4,3.1561]
[1719881915232,0.50209942,3447.7,3447.4,3.1561]
[1719881915439,0.16100746,3447.7,3447.4,3.1561]
[1719881915856,2.13211844,3447.8,3447.4,3.1561]
[1719881916053,0.16100746,3447.6,3447.4,3.1561]
[1719881916226,2.90031,3447.9,3447.4,3.1561]
[1719881916555,2.63454189,3447.8,3447.4,3.1561]
[1719881916859,0.6631023,3447.7,3447.4,3.1561]
[1719881917156,0.16100746,3447.7,3447.4,3.1561]
[1719881917456,2.13244705,3447.8,3447.4,3.1561]
[1719881917659,0.16100746,3447.6,3447.4,3.1561]
[1719881917954,0.16100746,3447.5,3447.4,3.1561]
[1719881918141,2.13244705,3447.7,3447.4,3.1561]
[1719881918462,0.16100746,3447.6,3447.4,3.1561]
[1719881920722,2.90031,3447.9,3447.4,3.1561]
[1719881920928,2.90031,3447.9,3447.4,0.826]
[1719881920929,3.06140681,3447.8,3447.4,0.826]
[1719881921157,2.13362538,3447.7,3447.4,0.826]
[1719881921659,2.29463219,3447.6,3447.4,0.826]
[1719881924558,2.29463219,3447.6,3447.2,2.9009]
[1719881924730,2.29463219,3447.6,3447.3,0.826]
[1719881925963,0.16100681,3447.6,3447.3,0.826]
[1719881926163,3.40250322,3447.8,3447.3,0.826]
[1719881926361,0.16095625,3447.7,3447.3,0.826]
[1719881926662,2.9004,3447.8,3447.3,0.826]
[1719881926832,0.16095625,3447.6,3447.3,0.826]
[1719881927032,2.9004,3447.8,3447.3,0.826]
[1719881927234,0.16093065,3447.5,3447.3,0.826]
[1719881927433,2.9004,3447.8,3447.3,0.826]
[1719881927635,0.16092441,3447.4,3447.3,0.826]
[1719881928151,2.9004,3447.8,3447.3,0.826]
[1719881928332,0.16092441,3447.7,3447.3,0.826]
[1719881928571,2.90031,3447.9,3447.1,2.4317]
[1719881928730,0.16092441,3447.6,3447.1,3.2577]
[1719881928934,0.16092441,3447.6,3447.2,0.826]
[1719881930768,2.43552441,3447.6,3447.2,0.826]
[1719881931748,2.43552441,3447.6,3446.8,2.3974]
[1719881931944,2.90074,3447.4,3446.8,2.3974]
[1719881932149,0.16084269,3447.3,3447.0,3.826]
[1719881935973,0.16084269,3447.3,3447.2,0.826]
[1719881936555,2.13373842,3447.5,3447.2,0.826]
[1719881936739,0.16068921,3447.4,3447.2,2.4398]
[1719881936943,2.13326958,3447.7,3447.3,0.826]
[1719881937162,2.29395879,3447.6,3447.5,0.826]
[1719881938275,0.16068921,3447.6,3447.5,0.826]
[1719881939147,0.66279381,3447.6,3447.5,0.826]
[1719881939470,2.29395879,3447.6,3447.5,0.826]
[1719881939645,0.97467077,3447.6,3447.2,0.826]
[1719881939844,2.13336103,3447.5,3447.2,0.826]
[1719881940047,2.29408454,3447.5,3447.2,0.826]
[1719881940444,0.16072351,3447.5,3447.2,0.826]
[1719881940678,2.13353214,3447.5,3447.2,0.826]
[1719881940850,0.16076651,3447.4,3447.2,0.826]
[1719881942693,2.29429865,3447.4,3447.2,0.826]
[1719881942897,0.16076651,3447.4,3447.2,0.826]
[1719881943576,2.29451841,3447.4,3447.2,0.826]
[1719881946583,2.29428143,3447.4,3447.2,0.826]
[1719881948791,0.16076651,3447.4,3447.2,0.826]
[1719881950186,2.29403224,3447.4,3447.2,0.826]
[1719881952903,0.16076651,3447.4,3447.2,0.826]
[1719881953091,2.29398664,3447.4,3447.2,0.826]
[1719881953287,2.90048,3447.7,3447.2,0.826]
[1719881953476,0.16066852,3447.3,3447.2,0.826]
[1719881953680,2.13322364,3447.4,3447.2,0.826]
[1719881953895,0.16066852,3447.3,3447.2,0.826]
[1719881956207,2.13324927,3447.4,3447.2,0.826]
[1719881956527,0.16066852,3447.3,3447.2,0.826]
[1719881962418,0.16066852,3447.3,3447.0,8.97827]
[1719881965115,2.29419201,3447.3,3447.0,3.826]
[1719881965621,0.16066852,3447.3,3447.0,3.826]
[1719881965826,2.29454618,3447.3,3447.0,3.826]
[1719881966038,2.29454618,3447.3,3446.7,2.4937]
[1719881966187,2.13387766,3447.1,3446.6,6.72739]
[1719881966392,0.16066228,3447.0,3446.6,6.72739]
[1719881966722,0.16066228,3447.0,3446.6,8.233444]
[1719881967684,0.16066228,3447.0,3446.8,0.826]
[1719881969520,0.16066228,3447.0,3446.8,0.826]
[1719881970724,0.16066228,3447.0,3446.7,0.826]
[1719881971025,5.53685552,3446.9,3446.3,0.826]
[1719881971232,2.63564552,3446.8,3446.3,0.826]
[1719881971435,2.29390776,3446.8,3446.3,0.826]
[1719881972113,2.29330285,3446.8,3446.3,0.826]
[1719881972620,2.29285753,3446.8,3446.3,0.826]
[1719881972995,2.29285753,3446.8,3446.3,2.015054]
[1719881973195,0.16050316,3446.8,3446.7,0.826]
[1719881973427,2.13235437,3447.0,3446.7,0.826]
[1719881973728,0.16041579,3446.9,3446.7,0.826]
[1719881975807,2.29246725,3446.9,3446.7,0.826]
[1719881976120,0.16041579,3446.9,3446.7,0.826]
[1719881978515,2.13166344,3447.0,3446.7,0.826]
[1719881978823,0.16037494,3446.8,3446.7,0.826]
[1719881979144,2.13166344,3447.0,3446.7,0.826]
[1719881979348,0.16037494,3446.8,3446.7,0.826]
[1719881979527,2.13166344,3447.0,3446.7,0.826]
[1719881980016,0.16032155,3446.9,3446.7,0.826]
[1719881981711,0.16032155,3446.9,3446.5,0.826]
[1719881982113,5.34578155,3446.9,3446.5,0.826]
[1719881982348,0.74768542,3446.8,3446.0,2.90185]
[1719881982533,2.90139,3446.7,3446.0,2.90185]
[1719881982741,2.90139,3446.7,3446.1,0.826]
[1719881982953,0.16032468,3446.6,3446.1,0.826]